fUST/lending_fUST_20240717
["ID","MTS","AMOUNT","RATE_DAILY","PERIOD"]
[332449073,1721193043511,-507.76842794,0.00021917,2]
[332449074,1721193043520,-500.0,0.00021917,2]
[332449077,1721193043529,-557.7,0.00021917,2]
[332449079,1721193043539,-503.06287828,0.00021917,2]
[332449080,1721193043549,-500.0,0.00021917,2]
[332449082,1721193043558,-543.25066049,0.00021917,2]
[332449084,1721193043567,-500.0,0.00021917,2]
[332449086,1721193043577,-500.00000001,0.00021917,2]
[332449088,1721193043586,-500.0,0.00021917,2]
[332449089,1721193043595,-500.0,0.00021917,2]
[332449091,1721193043605,-500.0,0.00021917,2]
[332449093,1721193043614,-500.0,0.00021917,2]
[332449095,1721193043623,-500.0,0.00021917,2]
[332449097,1721193043633,-500.0,0.00021917,2]
[332449098,1721193043642,-500.0,0.00021917,2]
[332449100,1721193043652,-500.0,0.00021917,2]
[332449101,1721193043663,-500.0,0.00021917,2]
[332449102,1721193043673,-500.0,0.00021917,2]
[332449103,1721193043682,-500.0,0.00021917,2]
[332449104,1721193043691,-515.46089953,0.00021917,2]
[332449105,1721193043702,-500.0,0.00021917,2]
[332449106,1721193043712,-500.0,0.00021917,2]
[332449107,1721193043721,-500.0,0.00021917,2]
[332449108,1721193043731,-500.0,0.00021917,2]
[332449109,1721193043742,-500.0,0.00021917,2]
[332449110,1721193043751,-500.0,0.00021917,2]
[332449111,1721193043761,-500.0,0.00021917,2]
[332449112,1721193043770,-500.0,0.00021917,2]
[332449113,1721193043779,-500.0,0.00021917,2]
[332449114,1721193043790,-500.0,0.00021917,2]
[332449115,1721193043799,-500.0,0.00021917,2]
[332449116,1721193043808,-500.0,0.00021917,2]
[332449117,1721193043818,-500.0,0.00021917,2]
[332449118,1721193043828,-500.0,0.00021917,2]
[332449119,1721193043837,-502.16335721,0.00021917,2]
[332449120,1721193043846,-500.0,0.00021917,2]
[332449121,1721193043855,-500.0,0.00021917,2]
[332449122,1721193043865,-500.0,0.00021917,2]
[332449123,1721193043875,-537.68541117,0.00021917,2]
[332449124,1721193043885,-500.0,0.00021917,2]
[332449125,1721193043895,-500.0,0.00021917,2]
[332449126,1721193043906,-303.6111805,0.00021917,2]
[332449127,1721193043917,-500.0,0.00021917,2]
[332449128,1721193043927,-500.0,0.00021917,2]
[332449129,1721193043939,-500.0,0.00021917,2]
[332449130,1721193043949,-500.0,0.00021917,2]
[332449131,1721193043958,-500.0,0.00021917,2]
[332449132,1721193043967,-330.83450562,0.00021917,2]
[332449133,1721193043977,-507.07375226,0.00021917,2]
[332449134,1721193043987,-500.0,0.00021917,2]
[332449135,1721193044000,-500.0,0.00021917,2]
[332449136,1721193044013,-500.0,0.00021917,2]
[332449137,1721193044023,-500.0,0.00021917,2]
[332449138,1721193044033,-500.0,0.00021917,2]
[332449139,1721193044043,-500.0,0.00021917,2]
[332449140,1721193044053,-265.0,0.00021917,2]
[332449141,1721193044062,-501.2722476,0.00021917,2]
[332449142,1721193044071,-500.0,0.00021917,2]
[332449143,1721193044081,-500.0,0.00021917,2]
[332449144,1721193044091,-500.0,0.00021917,2]
[332449145,1721193044100,-504.42363092,0.00021917,2]
[332449146,1721193044109,-500.0,0.00021917,2]
[332449147,1721193044118,-501.49692909,0.00021917,2]
[332449148,1721193044127,-500.0,0.00021917,2]
[332449149,1721193044137,-503.19769547,0.00021917,2]
[332449150,1721193044146,-500.0,0.00021917,2]
[332449151,1721193044156,-500.0,0.00021917,2]
[332449152,1721193044165,-500.0,0.00021917,2]
[332449153,1721193044175,-500.0,0.00021917,2]
[332449154,1721193044183,-539.22468542,0.00021917,2]
[332449155,1721193044192,-500.0,0.00021917,2]
[332449156,1721193044202,-500.0,0.00021917,2]
[332449157,1721193044215,-500.0,0.00021917,2]
[332449158,1721193044225,-500.0,0.00021917,2]
[332449159,1721193044236,-500.0,0.00021917,2]
[332449160,1721193044246,-500.0,0.00021917,2]
[332449161,1721193044255,-531.98246886,0.00021917,2]
[332449162,1721193044264,-500.0,0.00021917,2]
[332449163,1721193044273,-500.0,0.00021917,2]
[332449164,1721193044283,-500.0,0.00021917,2]
[332449165,1721193044294,-500.0,0.00021917,2]
[332449166,1721193044303,-500.0,0.00021917,2]
[332449167,1721193044313,-501.28772361,0.00021917,2]
[332449168,1721193044322,-500.0,0.00021917,2]
[332449169,1721193044331,-255.12937332,0.00021917,2]
[332449170,1721193044341,-500.0,0.00021917,2]
[332449171,1721193044350,-501.59572252,0.00021917,2]
[332449172,1721193044359,-500.0,0.00021917,2]
[332449173,1721193044370,-500.0,0.00021917,2]
[332449174,1721193044379,-500.0,0.00021917,2]
[332449175,1721193044388,-500.0,0.00021917,2]
[332449176,1721193044398,-500.0,0.00021917,2]
[332449177,1721193044407,-500.0,0.00021917,2]
[332449178,1721193044417,-500.0,0.00021917,2]
[332449179,1721193044426,-505.28232987,0.00021917,2]
[332449180,1721193044436,-500.0,0.00021917,2]
[332449181,1721193044445,-500.0,0.00021917,2]
[332449182,1721193044454,-500.0,0.00021917,2]
[332449183,1721193044463,-500.0,0.00021917,2]
[332449184,1721193044472,-503.19748351,0.00021917,2]
[332449185,1721193044481,-500.0,0.00021917,2]
[332449186,1721193044491,-500.0,0.00021917,2]
[332449187,1721193044500,-341.02257432,0.00021917,2]
[332449188,1721193044509,-506.37481179,0.00021917,2]
[332449189,1721193044519,-500.0,0.00021917,2]
[332449190,1721193044528,-500.0,0.00021917,2]
[332449191,1721193044537,-500.0,0.00021917,2]
[332449192,1721193044548,-500.0,0.00021917,2]
[332449193,1721193044557,-500.0,0.00021917,2]
[332449194,1721193044567,-500.0,0.00021917,2]
[332449195,1721193044576,-500.68476795,0.00021917,2]
[332449196,1721193044586,-500.0,0.00021917,2]
[332449197,1721193044595,-500.91209916,0.00021917,2]
[332449198,1721193044604,-500.0,0.00021917,2]
[332449199,1721193044613,-501.30625876,0.00021917,2]
[332449200,1721193044623,-500.0,0.00021917,2]
[332449201,1721193044632,-500.0,0.00021917,2]
[332449202,1721193044641,-500.0,0.00021917,2]
[332449203,1721193044651,-500.0,0.00021917,2]
[332449204,1721193044660,-500.0,0.00021917,2]
[332449205,1721193044669,-501.95531932,0.00021917,2]
[332449206,1721193044678,-507.89166043,0.00021917,2]
[332449207,1721193044688,-500.0,0.00021917,2]
[332449208,1721193044697,-500.0,0.00021917,2]
[332449209,1721193044706,-500.0,0.00021917,2]
[332449210,1721193044716,-258.51117403,0.00021917,2]
[332449211,1721193044725,-502.98690756,0.00021917,2]
[332449212,1721193044734,-500.0,0.00021917,2]
[332449213,1721193044743,-500.0,0.00021917,2]
[332449214,1721193044752,-500.0,0.00021917,2]
[332449215,1721193044761,-500.0,0.00021917,2]
[332449216,1721193044770,-500.0,0.00021917,2]
[332449217,1721193044780,-500.0,0.00021917,2]
[332449218,1721193044792,-500.0,0.00021917,2]
[332449219,1721193044804,-500.0,0.00021917,2]
[332449220,1721193044814,-500.0,0.00021917,2]
[332449221,1721193044824,-500.0,0.00021917,2]
[332449222,1721193044835,-280.05291229,0.00021917,2]
[332449223,1721193044845,-504.87591311,0.00021917,2]
[332449224,1721193044855,-500.0,0.00021917,2]
[332449225,1721193044864,-500.0,0.00021917,2]
[332449226,1721193044874,-511.56153135,0.00021917,2]
[332449227,1721193044886,-621.42627649,0.00021917,2]
[332449228,1721193044898,-500.0,0.00021917,2]
[332449229,1721193044908,-461.80070194,0.00021917,2]
[332449230,1721193044919,-500.0,0.00021917,2]
[332449231,1721193044930,-500.0,0.00021917,2]
[332449232,1721193044940,-500.0,0.00021917,2]
[332449233,1721193044950,-500.0,0.00021917,2]
[332449234,1721193044960,-500.0,0.00021917,2]
[332449235,1721193044970,-500.0,0.00021917,2]
[332449236,1721193044979,-500.0,0.00021917,2]
[332449237,1721193044991,-514.90537044,0.00021917,2]
[332449238,1721193045002,-511.36376727,0.00021917,2]
[332449239,1721193045014,-500.0,0.00021917,2]
[332449240,1721193045025,-511.37329443,0.00021917,2]
[332449241,1721193045035,-500.0,0.00021917,2]
[332449242,1721193045046,-500.0,0.00021917,2]
[332449243,1721193045055,-500.0,0.00021917,2]
[332449244,1721193045065,-379.89023572,0.00021917,2]
[332449245,1721193045074,-500.0,0.00021917,2]
[332449246,1721193045084,-500.0,0.00021917,2]
[332449247,1721193045093,-500.0,0.00021917,2]
[332449248,1721193045103,-500.94646224,0.00021917,2]
[332449249,1721193045112,-500.0,0.00021917,2]
[332449250,1721193045121,-500.0,0.00021917,2]
[332449251,1721193045132,-500.0,0.00021917,2]
[332449252,1721193045142,-500.0,0.00021917,2]
[332449253,1721193045151,-519.10902499,0.00021917,2]
[332449254,1721193045160,-500.0,0.00021917,2]
[332449255,1721193045170,-500.0,0.00021917,2]
[332449256,1721193045179,-509.11486679,0.00021917,2]
[332449257,1721193045188,-502.91531745,0.00021917,2]
[332449258,1721193045197,-500.0,0.00021917,2]
[332449259,1721193045206,-500.0,0.00021917,2]
[332449260,1721193045216,-500.0,0.00021917,2]
[332449261,1721193045225,-500.0,0.00021917,2]
[332449262,1721193045235,-500.0,0.00021917,2]
[332449263,1721193045244,-556.02474155,0.00021917,2]
[332449264,1721193045254,-500.0,0.00021917,2]
[332449265,1721193045263,-500.0,0.00021917,2]
[332449266,1721193045272,-500.0,0.00021917,2]
[332449267,1721193045282,-500.0,0.00021917,2]
[332449268,1721193045293,-501.97546178,0.00021917,2]
[332449269,1721193045303,-371.19440051,0.00021917,2]
[332449270,1721193045579,-128.80559949,0.00021917,2]
[332449271,1721193045589,-382.30004371,0.00021917,2]
[332449442,1721193304047,163.982097,0.00024,60]
[332449445,1721193522234,599.14160025,0.00014999,2]
[332449448,1721193554281,566.34097351,0.00015,2]
[332449450,1721193638039,219.61452557,0.00015,2]
[332449452,1721193733028,217.84692174,0.00015,2]
[332449453,1721193763108,8238.82900929,0.00014998,2]
[332449455,1721193809799,552.34931116,0.00014999,2]
[332449456,1721193826463,559.2231156,0.00014999,2]
[332449457,1721193833035,217.84692174,0.00014999,2]
[332449459,1721193907034,-477.14632281,0.00016255,2]
[332449460,1721193907058,-6512.50244703,0.00016255,2]
[332449462,1721193982999,160.16535353,0.00014999,2]
[332449463,1721193996362,163.29845904,0.00014999,2]
[332449465,1721194046589,181.49011438,0.00014999,2]
[332449466,1721194053913,155.87532403,0.00014999,2]
[332449467,1721194070563,217.97790573,0.00014999,2]
[332449470,1721194112429,211.00639127,0.00014999,2]
[332449472,1721194119501,-166.15008232,0.00016255,2]
[332449473,1721194119523,-1468.60480204,0.00016255,2]
[332449474,1721194131419,262.3278843,0.0001,2]
[332449475,1721194158565,217.97790573,0.00014999,2]
[332449481,1721194190341,155.94754293,0.00012121,2]
[332449482,1721194193768,525.39824529,0.00012121,2]
[332449484,1721194196145,2423.17315558,0.00015,2]
[332449485,1721194206883,6993.76228577,0.00014998,2]
[332449486,1721194208541,263.89107345,0.00014999,2]
[332449487,1721194208657,228.15888471,0.00014999,2]
[332449488,1721194220072,217.58495376,0.00012121,2]
[332449489,1721194220645,197.61308168,0.00014999,2]
[332449729,1721194240426,-300.0,0.00016254,2]
[332449730,1721194240436,-155.09743665,0.00016255,2]
[332449731,1721194240446,-276.84511174,0.00016972,2]
[332449732,1721194240456,-420.0,0.00017879,2]
[332449733,1721194240467,-172.9676678,0.00018078,2]
[332449734,1721194240477,-166.15008232,0.00018182,2]
[332449735,1721194240487,-191.80654326,0.00018798,2]
[332449736,1721194240496,-3343.50074483,0.000189,2]
[332449737,1721194240506,-814.78152441,0.00019039,3]
[332449738,1721194240516,-197.57665127,0.00019039,2]
[332449739,1721194240528,-587.0,0.00019667,2]
[332449740,1721194240538,-3093.57280098,0.000199,2]
[332449741,1721194240547,-993.88731362,0.0002,2]
[332449742,1721194240557,-158.8017905,0.0002,2]
[332449743,1721194240567,-309.45844772,0.0002,2]
[332449744,1721194240577,-154.74467129,0.0002,2]
[332449745,1721194240587,-435.0,0.0002,2]
[332449746,1721194240596,-228.33337167,0.0002,2]
[332449747,1721194240606,-1168.32811277,0.0002,2]
[332449748,1721194240616,-154.72922386,0.0002,2]
[332449749,1721194240625,-154.72922386,0.0002,2]
[332449750,1721194240634,-43785.8033263,0.0002,2]
[332449751,1721194240644,-293.89533444,0.0002,2]
[332449752,1721194240654,-10881.57456162,0.0002,2]
[332449753,1721194240664,-250.0,0.00020083,2]
[332449754,1721194240673,-164.83763,0.0002064,2]
[332449755,1721194240683,-4237.94682042,0.0002066,7]
[332449756,1721194240693,-293.5691494,0.00020822,2]
[332449757,1721194240703,-447.6,0.00020858,2]
[332449758,1721194240713,-18573.7228209,0.0002098,3]
[332449759,1721194240723,-17441.26238848,0.0002099,5]
[332449760,1721194240733,-61789.79864933,0.0002099,2]
[332449779,1721194243471,-435.68161503,0.0002099,2]
[332449780,1721194243498,-1529.4146804,0.0002099,2]
[332449781,1721194243511,-33424.04969347,0.0002099,2]
[332449788,1721194318033,150.72868836,0.00022231,120]
[332449790,1721194325664,-3767.55579914,0.00016255,2]
[332449791,1721194513353,-300.0,0.00016254,2]
[332449792,1721194513378,-155.12661016,0.00016255,2]
[332449793,1721194513403,-8583.69317205,0.00016255,2]
[332449794,1721194515489,-455.12661016,0.00016255,2]
[332449795,1721194515519,-5073.31421878,0.00016255,2]
[332449797,1721194545105,5528.44082894,0.00014998,2]
[332449799,1721194554614,-10175.31228018,0.00016255,2]
[332449803,1721194856327,9717.50777183,0.00014998,2]
[332449817,1721195009207,150.74373565,0.00022219,30]
[332449841,1721195356468,154.72922386,0.00014999,2]
[332449844,1721195371417,154.72922386,0.00014999,2]
[332449984,1721195438984,-1734.0,0.0001625,2]
[332449985,1721195438994,-300.0,0.00016254,2]
[332449986,1721195439003,-12224.48329255,0.00016255,2]
[332449987,1721195439014,-420.0,0.00017879,2]
[332449988,1721195439024,-3942.0,0.0001818,2]
[332449989,1721195439034,-5312.26693031,0.00018489,2]
[332449990,1721195439118,-4821.89535669,0.00018489,2]
[332449991,1721195439128,-2229.00049655,0.000189,2]
[332449992,1721195439137,-192.2245157,0.00019,2]
[332449993,1721195439147,-814.78152441,0.00019039,3]
[332449994,1721195439156,-197.57665127,0.00019039,2]
[332449995,1721195439165,-250.0,0.00019146,2]
[332449996,1721195439174,-164.901326,0.00019178,2]
[332449997,1721195439183,-164.83763,0.00019178,2]
[332449998,1721195439192,-587.0,0.00019667,2]
[332449999,1721195439202,-154.72922386,0.0002,2]
[332450000,1721195439211,-281.90674759,0.0002,2]
[332450001,1721195439220,-246.95944746,0.0002,2]
[332450002,1721195439229,-192.31230957,0.0002,2]
[332450003,1721195439239,-293.6566525,0.00020078,2]
[332450004,1721195439248,-594.4010563,0.00020078,2]
[332450005,1721195439258,-293.6566525,0.00020178,2]
[332450006,1721195439268,-621.25781054,0.00020244,2]
[332450007,1721195439277,-293.6566525,0.00020278,2]
[332450008,1721195439287,-293.6566525,0.00020278,2]
[332450009,1721195439296,-467.3,0.00020855,2]
[332450010,1721195439306,-293.6566525,0.00020878,2]
[332450011,1721195439315,-151.19277972,0.0002089,2]
[332450012,1721195439325,-16843.10580401,0.0002099,2]
[332450013,1721195439335,-248.11643315,0.00021,2]
[332450014,1721195439345,-285.0,0.00021095,2]
[332450015,1721195439355,-295.08989123,0.00021095,2]
[332450016,1721195439366,-300.24421429,0.00021095,2]
[332450017,1721195439375,-717.144254,0.00021096,2]
[332450018,1721195439385,-620.06289053,0.00021256,2]
[332450019,1721195439396,-467.3,0.00021277,2]
[332450020,1721195439406,-500.0,0.00021465,7]
[332450021,1721195439416,-823.0,0.00021634,2]
[332450022,1721195439426,-480.8476682,0.00021697,2]
[332450023,1721195439435,-467.3,0.000217,2]
[332450024,1721195439445,-13807.1333276,0.00021778,3]
[332450025,1721195439454,-485.09,0.00021787,3]
[332450026,1721195439466,-13807.1333276,0.0002179,3]
[332450027,1721195439475,-13807.1333276,0.00021797,3]
[332450028,1721195439485,-10141.11675301,0.00021798,2]
[332450029,1721195439494,-185.0,0.000218,6]
[332450030,1721195439504,-3000.0,0.000218,2]
[332450031,1721195439514,-150.112233,0.000218,2]
[332450032,1721195439523,-150.112233,0.000218,3]
[332450033,1721195439532,-1910.53113688,0.00021807,2]
[332450034,1721195439542,-3000.0,0.0002181,2]
[332450035,1721195439551,-13807.1333276,0.0002181,3]
[332450036,1721195439561,-151.19277972,0.00021817,2]
[332450037,1721195439571,-3000.0,0.0002182,2]
[332450038,1721195439580,-3000.0,0.0002183,2]
[332450039,1721195439589,-13807.1333276,0.0002184,3]
[332450040,1721195439599,-3000.0,0.0002184,2]
[332450041,1721195439608,-3000.0,0.0002185,2]
[332450042,1721195439617,-3000.0,0.0002186,2]
[332450043,1721195439628,-3000.0,0.0002187,2]
[332450044,1721195439638,-3000.0,0.0002188,2]
[332450045,1721195439648,-13807.1333276,0.00021887,3]
[332450046,1721195439658,-3000.0,0.0002189,2]
[332450047,1721195439669,-27614.2666552,0.00021897,3]
[332450048,1721195439679,-374.0,0.000219,2]
[332450049,1721195439690,-150.112233,0.000219,4]
[332450050,1721195439701,-150.112233,0.000219,2]
[332450051,1721195439711,-150.112233,0.000219,4]
[332450052,1721195439720,-150.112233,0.000219,3]
[332450053,1721195439730,-150.112233,0.000219,5]
[332450054,1721195439740,-150.112233,0.000219,4]
[332450055,1721195439750,-150.112233,0.000219,5]
[332450056,1721195439759,-150.112233,0.000219,3]
[332450057,1721195439770,-150.112233,0.000219,3]
[332450058,1721195439780,-150.112233,0.000219,4]
[332450059,1721195439790,-150.112233,0.000219,5]
[332450060,1721195439799,-3000.0,0.000219,2]
[332450061,1721195439808,-150.112233,0.000219,2]
[332450062,1721195439817,-150.112233,0.000219,5]
[332450063,1721195439827,-150.112233,0.000219,3]
[332450064,1721195439835,-150.112233,0.000219,2]
[332450065,1721195439845,-150.112233,0.000219,5]
[332450069,1721195440014,-150.112233,0.000219,5]
[332450070,1721195440024,-150.112233,0.000219,5]
[332450071,1721195440033,-150.112233,0.000219,3]
[332450072,1721195440042,-279.89676414,0.00021906,2]
[332450074,1721195440052,-159.51847152,0.00021906,2]
[332450076,1721195440061,-500.0,0.00021906,2]
[332450078,1721195440070,-500.0,0.00021906,2]
[332450080,1721195440080,-63.2043227,0.00021906,2]
[332450104,1721195440972,-436.7956773,0.00021906,2]
[332450105,1721195440981,-513.1778561,0.00021906,2]
[332450106,1721195440990,-244.33951844,0.00021906,2]
[332450107,1721195440999,-500.0,0.00021906,2]
[332450108,1721195441007,-500.0,0.00021906,2]
[332450109,1721195441018,-500.0,0.00021906,2]
[332450110,1721195441027,-500.0,0.00021906,2]
[332450111,1721195441037,-500.0,0.00021906,2]
[332450112,1721195441046,-273.43169476,0.00021906,2]
[332450113,1721195441055,-11156.28043979,0.00021907,5]
[332450114,1721195441106,-15427.16862517,0.00021907,5]
[332450115,1721195441115,-110457.066621,0.00021907,3]
[332450116,1721195441124,-3000.0,0.0002191,2]
[332450117,1721195441133,-9169.83341396,0.00021917,5]
[332450118,1721195441142,-30.72723451,0.00021917,2]
[332450119,1721195441151,-500.0,0.00021917,2]
[332450120,1721195441160,-268.11,0.00021917,2]
[332450121,1721195441169,-500.0,0.00021917,2]
[332450122,1721195441178,-500.0,0.00021917,2]
[332450123,1721195441187,-503.39614467,0.00021917,2]
[332450124,1721195441196,-500.0,0.00021917,2]
[332450125,1721195441205,-500.0,0.00021917,2]
[332450126,1721195441214,-500.0,0.00021917,2]
[332450127,1721195441223,-500.0,0.00021917,2]
[332450128,1721195441233,-500.0,0.00021917,2]
[332450129,1721195441242,-500.0,0.00021917,2]
[332450130,1721195441251,-500.0,0.00021917,2]
[332450131,1721195441261,-500.0,0.00021917,2]
[332450132,1721195441271,-501.178986,0.00021917,2]
[332450133,1721195441281,-500.0,0.00021917,2]
[332450134,1721195441291,-500.0,0.00021917,2]
[332450135,1721195441301,-500.0,0.00021917,2]
[332450136,1721195441311,-526.40455469,0.00021917,2]
[332450137,1721195441322,-500.0,0.00021917,2]
[332450138,1721195441332,-500.0,0.00021917,2]
[332450139,1721195441343,-268.0520377,0.00021917,2]
[332450140,1721195441353,-500.0,0.00021917,2]
[332450141,1721195441363,-500.0,0.00021917,2]
[332450142,1721195441372,-500.0,0.00021917,2]
[332450143,1721195441383,-500.0,0.00021917,2]
[332450144,1721195441394,-551.60780413,0.00021917,2]
[332450145,1721195441406,-500.0,0.00021917,2]
[332450146,1721195441416,-535.90890812,0.00021917,2]
[332450147,1721195441426,-501.62910118,0.00021917,2]
[332450148,1721195441435,-500.0,0.00021917,2]
[332450149,1721195441445,-500.0,0.00021917,2]
[332450150,1721195441455,-281.60543785,0.00021917,2]
[332450151,1721195441464,-500.0,0.00021917,2]
[332450152,1721195441475,-507.93337842,0.00021917,2]
[332450153,1721195441484,-500.0,0.00021917,2]
[332450154,1721195441494,-500.0,0.00021917,2]
[332450155,1721195441503,-500.66933274,0.00021917,2]
[332450156,1721195441513,-503.17151581,0.00021917,2]
[332450157,1721195441522,-500.0,0.00021917,2]
[332450158,1721195441531,-503.04754031,0.00021917,2]
[332450159,1721195441541,-153.78341379,0.00021917,2]
[332450160,1721195441550,-500.0,0.00021917,2]
[332450161,1721195441559,-500.0,0.00021917,2]
[332450162,1721195441568,-507.95315657,0.00021917,2]
[332450163,1721195441577,-500.0,0.00021917,2]
[332450164,1721195441587,-502.8734352,0.00021917,2]
[332450165,1721195441596,-516.51267347,0.00021917,2]
[332450166,1721195441605,-524.38008235,0.00021917,2]
[332450167,1721195441615,-502.43553884,0.00021917,2]
[332450168,1721195441624,-500.0,0.00021917,2]
[332450169,1721195441633,-500.0,0.00021917,2]
[332450170,1721195441643,-500.71151987,0.00021917,2]
[332450171,1721195441651,-500.0,0.00021917,2]
[332450172,1721195441660,-500.0,0.00021917,2]
[332450173,1721195441670,-500.0,0.00021917,2]
[332450174,1721195441680,-500.0,0.00021917,2]
[332450175,1721195441689,-500.0,0.00021917,2]
[332450176,1721195441698,-500.0,0.00021917,2]
[332450177,1721195441707,-500.0,0.00021917,2]
[332450178,1721195441719,-500.0,0.00021917,2]
[332450179,1721195441730,-501.20182589,0.00021917,2]
[332450180,1721195441740,-500.0,0.00021917,2]
[332450181,1721195441751,-511.99518134,0.00021917,2]
[332450182,1721195441762,-500.0,0.00021917,2]
[332450183,1721195441772,-500.0,0.00021917,2]
[332450184,1721195441786,-500.0,0.00021917,2]
[332450185,1721195441795,-507.93935251,0.00021917,2]
[332450186,1721195441804,-500.0,0.00021917,2]
[332450187,1721195441813,-500.0,0.00021917,2]
[332450188,1721195441825,-500.0,0.00021917,2]
[332450189,1721195441834,-500.0,0.00021917,2]
[332450190,1721195441844,-500.0,0.00021917,2]
[332450191,1721195441854,-500.0,0.00021917,2]
[332450192,1721195441863,-500.0,0.00021917,2]
[332450193,1721195441872,-500.0,0.00021917,2]
[332450194,1721195441881,-507.13098591,0.00021917,2]
[332450195,1721195441890,-513.11340021,0.00021917,2]
[332450196,1721195441899,-500.0,0.00021917,2]
[332450197,1721195441909,-500.0,0.00021917,2]
[332450198,1721195441917,-505.46640669,0.00021917,2]
[332450199,1721195441927,-500.0,0.00021917,2]
[332450200,1721195441935,-500.0,0.00021917,2]
[332450201,1721195441945,-500.0,0.00021917,2]
[332450202,1721195441954,-500.0,0.00021917,2]
[332450203,1721195441963,-500.0,0.00021917,2]
[332450204,1721195441972,-500.0,0.00021917,2]
[332450205,1721195441981,-500.0,0.00021917,2]
[332450206,1721195441991,-500.0,0.00021917,2]
[332450207,1721195442000,-500.0,0.00021917,2]
[332450208,1721195442013,-500.0,0.00021917,2]
[332450209,1721195442022,-500.0,0.00021917,2]
[332450210,1721195442030,-500.0,0.00021917,2]
[332450211,1721195442039,-617.55934346,0.00021917,2]
[332450212,1721195442049,-500.0,0.00021917,2]
[332450213,1721195442058,-500.0,0.00021917,2]
[332450214,1721195442067,-500.0,0.00021917,2]
[332450215,1721195442076,-500.0,0.00021917,2]
[332450216,1721195442086,-501.72558618,0.00021917,2]
[332450217,1721195442095,-505.2861566,0.00021917,2]
[332450218,1721195442105,-500.0,0.00021917,2]
[332450219,1721195442114,-500.0,0.00021917,2]
[332450220,1721195442123,-500.0,0.00021917,2]
[332450221,1721195442132,-500.0,0.00021917,2]
[332450222,1721195442142,-500.0,0.00021917,2]
[332450223,1721195442151,-500.0,0.00021917,2]
[332450224,1721195442160,-500.0,0.00021917,2]
[332450225,1721195442170,-500.0,0.00021917,2]
[332450226,1721195442179,-500.0,0.00021917,2]
[332450227,1721195442188,-500.0,0.00021917,2]
[332450228,1721195442197,-500.0,0.00021917,2]
[332450229,1721195442206,-500.0,0.00021917,2]
[332450230,1721195442214,-500.0,0.00021917,2]
[332450231,1721195442224,-500.0,0.00021917,2]
[332450232,1721195442233,-500.0,0.00021917,2]
[332450233,1721195442242,-536.82881282,0.00021917,2]
[332450234,1721195442251,-500.0,0.00021917,2]
[332450235,1721195442263,-500.0,0.00021917,2]
[332450236,1721195442272,-500.0,0.00021917,2]
[332450237,1721195442281,-500.0,0.00021917,2]
[332450238,1721195442291,-500.0,0.00021917,2]
[332450239,1721195442302,-500.0,0.00021917,2]
[332450240,1721195442313,-500.0,0.00021917,2]
[332450241,1721195442324,-500.0,0.00021917,2]
[332450242,1721195442334,-500.0,0.00021917,2]
[332450243,1721195442343,-500.0,0.00021917,2]
[332450244,1721195442355,-500.0,0.00021917,2]
[332450245,1721195442365,-500.0,0.00021917,2]
[332450246,1721195442376,-500.0,0.00021917,2]
[332450247,1721195442387,-500.0,0.00021917,2]
[332450248,1721195442398,-500.0,0.00021917,2]
[332450249,1721195442409,-500.0,0.00021917,2]